bitfinex/quotes_BTCUSD_20250830
["timestamp","ask_amount","ask_price","bid_price","bid_amount"]
[1756530337167,2.59485724,108590.0,108580.0,0.0014]
[1756530337376,2.70037191,108590.0,108580.0,0.0014]
[1756530342527,2.68315356,108590.0,108580.0,0.0014]
[1756530345453,3.11283033,108590.0,108580.0,0.0014]
[1756530346433,3.13004807,108590.0,108580.0,0.0014]
[1756530347690,3.11283033,108590.0,108580.0,0.0014]
[1756530347898,3.13005226,108590.0,108580.0,0.0014]
[1756530351420,3.13007462,108590.0,108580.0,0.0014]
[1756530352357,3.1365423,108590.0,108580.0,0.0014]
[1756530353322,3.15641341,108590.0,108580.0,0.0014]
[1756530353927,3.06811709,108590.0,108580.0,0.0014]
[1756530358366,3.05087602,108590.0,108580.0,0.0014]
[1756530358606,3.06813177,108590.0,108580.0,0.0014]
[1756530358761,2.91369177,108590.0,108580.0,0.0014]
[1756530358966,3.06785177,108590.0,108580.0,0.0014]
[1756530359298,3.06785185,108590.0,108580.0,0.0014]
[1756530359913,3.15614817,108590.0,108580.0,0.0014]
[1756530363825,3.13627706,108590.0,108580.0,0.0014]
[1756530364038,3.15615753,108590.0,108580.0,0.0014]
[1756530364852,3.06786121,108590.0,108580.0,0.0014]
[1756530367901,3.05060691,108590.0,108580.0,0.0014]
[1756530368112,3.06786674,108590.0,108580.0,0.0014]
[1756530369361,3.06786674,108590.0,108580.0,0.0004]
[1756530369914,3.06786674,108590.0,108580.0,0.0024]
[1756530370345,3.15616306,108590.0,108580.0,0.0024]
[1756530378462,3.14969063,108590.0,108580.0,0.0024]
[1756530378681,3.15616046,108590.0,108580.0,0.0024]
[1756530379169,3.00200046,108590.0,108580.0,0.0024]
[1756530379371,3.15312046,108590.0,108580.0,0.0024]
[1756530379591,3.15312043,108590.0,108580.0,0.0024]
[1756530379808,3.15312043,108590.0,108580.0,0.00852]
[1756530379809,2.48103578,108590.0,108580.0,0.00852]
[1756530380005,2.57910262,108590.0,108580.0,0.00852]
[1756530380430,2.56184468,108590.0,108580.0,0.00852]
[1756530381221,2.57909749,108590.0,108580.0,0.00852]
[1756530382276,2.57909525,108590.0,108580.0,0.00852]
[1756530382918,3.00872358,108590.0,108580.0,0.00852]
[1756530383128,3.0970199,108590.0,108580.0,0.00852]
[1756530384446,3.07976933,108590.0,108580.0,0.00852]
[1756530384900,2.99147301,108590.0,108580.0,0.00852]
[1756530385509,2.56184468,108590.0,108580.0,0.00852]
[1756530386754,2.56397468,108590.0,108580.0,0.00852]
[1756530387168,2.99360301,108590.0,108580.0,0.00852]
[1756530391146,2.99360301,108590.0,108580.0,0.00536]
[1756530391624,3.08189933,108590.0,108580.0,0.00536]
[1756530392024,3.10223408,108590.0,108580.0,1e-08]
[1756530392267,3.10870049,108590.0,108580.0,1e-08]
[1756530392503,0.52419598,108580.0,108570.0,1e-08]
[1756530392715,3.43736229,108580.0,108570.0,1e-08]
[1756530392900,3.67027576,108580.0,108570.0,1e-08]
[1756530393150,3.67027302,108580.0,108570.0,1e-08]
[1756530393556,4.19061302,108580.0,108570.0,1e-08]
[1756530393748,4.19061302,108580.0,108570.0,0.00104758]
[1756530394077,4.19061302,108580.0,108570.0,0.00204758]
[1756530394496,4.19061302,108580.0,108570.0,0.00304758]
[1756530394924,4.21341836,108580.0,108570.0,1e-08]
[1756530395129,4.22262697,108580.0,108570.0,1e-08]
[1756530395379,4.06850697,108580.0,108570.0,1e-08]
[1756530395532,4.22262697,108580.0,108570.0,1e-08]
[1756530395731,0.18421295,108570.0,108560.0,0.0004]
[1756530395940,0.18421295,108570.0,108560.0,0.00044756]
[1756530395941,1.62721794,108570.0,108560.0,0.00044756]
[1756530396146,1.71764426,108570.0,108560.0,0.00044756]
[1756530396356,1.72073426,108570.0,108560.0,0.00044756]
[1756530396798,1.73795524,108570.0,108560.0,0.00044756]
[1756530397202,1.72073426,108570.0,108560.0,0.00044756]
[1756530397426,1.72073426,108570.0,108560.0,0.00144756]
[1756530398053,1.63243794,108570.0,108560.0,0.00144756]
[1756530398641,0.18943295,108570.0,108560.0,0.00144756]
[1756530398878,1.63243794,108570.0,108560.0,0.00144756]
[1756530403744,1.66013394,108570.0,108560.0,0.00144756]
[1756530406113,1.50601394,108570.0,108560.0,0.00144756]
[1756530406321,1.74847026,108570.0,108560.0,0.00144756]
[1756530413836,1.84145027,108570.0,108560.0,0.00144756]
[1756530414076,2.2710786,108570.0,108560.0,1e-08]
[1756530414290,3.69792115,108570.0,108560.0,1e-08]
[1756530414828,8.69892115,108570.0,108560.0,1e-08]
[1756530415083,0.18422991,108560.0,108550.0,0.0004]
[1756530415354,6.45937896,108560.0,108550.0,0.0004]
[1756530415532,3.60956061,108560.0,108550.0,0.0004]
[1756530415791,3.64029061,108560.0,108550.0,0.0004]
[1756530416535,2.19421562,108560.0,108550.0,0.00554]
[1756530416746,2.34837562,108560.0,108550.0,0.00554]
[1756530416947,2.77800395,108560.0,108550.0,0.00554]
[1756530417156,2.62384395,108560.0,108550.0,0.00554]
[1756530417362,2.77800271,108560.0,108550.0,0.00554]
[1756530417556,2.77800271,108560.0,108550.0,0.0004]
[1756530417882,2.78103271,108560.0,108550.0,0.0004]
[1756530420302,2.7874855,108560.0,108550.0,0.0004]
[1756530420931,2.787493,108560.0,108550.0,0.0004]
[1756530421276,2.80732368,108560.0,108550.0,0.0004]
[1756530421780,3.66658034,108560.0,108550.0,0.0004]
[1756530421991,1.08578036,108560.0,108550.0,0.0004]
[1756530422166,3.66355034,108560.0,108550.0,0.0004]
[1756530425473,3.66658034,108560.0,108550.0,0.0004]
[1756530426536,3.66858034,108560.0,108550.0,0.0004]
[1756530426814,3.66758034,108560.0,108550.0,0.0004]
[1756530426997,3.66658034,108560.0,108550.0,0.0004]
[1756530428438,3.66355034,108560.0,108550.0,0.0004]
[1756530430085,3.66657874,108560.0,108550.0,0.0004]
[1756530430523,3.66013131,108560.0,108550.0,0.0004]
[1756530430722,3.66658611,108560.0,108550.0,0.0004]
[1756530432066,3.64775703,108560.0,108550.0,0.0004]
[1756530432857,3.66658679,108560.0,108550.0,0.0004]
[1756530433066,3.64675703,108560.0,108550.0,0.0004]
[1756530433262,3.64975703,108560.0,108550.0,0.0004]
[1756530433460,3.65175703,108560.0,108550.0,0.0004]
[1756530434306,3.67158686,108560.0,108550.0,0.0004]
[1756530434518,3.65175703,108560.0,108550.0,0.0004]
[1756530434963,3.67158781,108560.0,108550.0,0.0004]
[1756530436038,3.65175703,108560.0,108550.0,0.0004]
[1756530436245,3.67158839,108560.0,108550.0,0.0004]
[1756530437475,3.67159543,108560.0,108550.0,0.0004]
[1756530437907,3.6642728,108560.0,108550.0,0.0004]
[1756530439160,3.60343328,108560.0,108550.0,0.0004]
[1756530441157,3.60344681,108560.0,108550.0,0.0004]
[1756530441365,3.60041681,108560.0,108550.0,0.00252]
[1756530441508,3.44625681,108560.0,108550.0,0.00252]
[1756530441712,3.59833838,108560.0,108550.0,0.00565]
[1756530441966,3.59833841,108560.0,108550.0,0.00565]
[1756530442605,3.59633841,108560.0,108550.0,0.00565]
[1756530442804,3.66352589,108560.0,108550.0,0.00565]
[1756530443005,3.66267589,108560.0,108550.0,0.00565]
[1756530443223,3.50640589,108560.0,108550.0,0.00565]
[1756530443457,3.66052589,108560.0,108550.0,0.00565]
[1756530443667,3.50640589,108560.0,108550.0,0.00565]
[1756530443882,3.66152589,108560.0,108550.0,0.00565]
[1756530444310,1.98851341,108560.0,108550.0,0.00565]
[1756530444542,2.45634005,108560.0,108550.0,0.00565]
[1756530444963,2.41141227,108560.0,108550.0,0.00565]
[1756530445396,2.41041227,108560.0,108550.0,0.00565]
[1756530445597,2.40941227,108560.0,108550.0,0.00565]
[1756530449581,2.25529227,108560.0,108550.0,0.00565]
[1756530449799,2.40941227,108560.0,108550.0,0.00565]
[1756530452023,2.40941227,108560.0,108550.0,0.00765]
[1756530453281,2.40941227,108560.0,108550.0,0.00865]
[1756530457106,2.41156227,108560.0,108550.0,0.00865]
[1756530458169,2.40941227,108560.0,108550.0,0.00865]
[1756530460445,2.41156227,108560.0,108550.0,0.00865]
[1756530464212,2.41156227,108560.0,108550.0,0.00552]
[1756530465775,2.41156227,108560.0,108550.0,0.00865]
[1756530466113,2.41156227,108560.0,108550.0,0.00552]
[1756530467375,2.41156227,108560.0,108550.0,0.00865]
[1756530470709,2.41156227,108560.0,108550.0,0.00552]
[1756530471273,2.41152227,108560.0,108550.0,0.00552]
[1756530471476,2.41152227,108560.0,108550.0,0.00848]
[1756530476936,2.41152227,108560.0,108550.0,0.00552]
[1756530480189,1.91744227,108560.0,108550.0,0.00552]
[1756530480402,2.06933227,108560.0,108550.0,0.00848]
[1756530480985,1.91529227,108560.0,108550.0,0.00848]
[1756530481185,1.91529227,108560.0,108550.0,0.036175]
[1756530481389,0.62640728,108560.0,108550.0,0.036175]
[1756530481614,1.91529227,108560.0,108550.0,0.03847808]
[1756530485221,1.46579227,108560.0,108550.0,0.03847808]
[1756530486310,0.17690728,108560.0,108550.0,0.03847808]
[1756530486588,1.03616394,108560.0,108550.0,0.31570498]
[1756530486806,1.03616394,108560.0,108550.0,0.3134019]
[1756530488379,0.17690728,108560.0,108550.0,0.3134019]
[1756530488597,1.03616394,108560.0,108550.0,0.3134019]
[1756530488774,0.85925666,108560.0,108550.0,0.3134019]
[1756530491420,1.04348657,108560.0,108550.0,0.3134019]
[1756530494695,1.04348657,108560.0,108550.0,0.4674019]
[1756530497999,0.18422991,108560.0,108550.0,0.4674019]
[1756530498215,1.04348657,108560.0,108550.0,0.4674019]
[1756530502291,0.18422991,108560.0,108550.0,0.4674019]
[1756530502497,1.04348657,108560.0,108550.0,0.4674019]
[1756530503570,1.04348657,108560.0,108550.0,0.3134019]
[1756530503777,1.04348657,108560.0,108550.0,0.4674019]
[1756530504505,1.04348657,108560.0,108550.0,0.3134019]
[1756530504677,1.04348657,108560.0,108550.0,0.4674019]
[1756530506771,1.04348657,108560.0,108550.0,0.3134019]
[1756530506994,1.04348657,108560.0,108550.0,0.4674019]
[1756530507176,0.85925666,108560.0,108550.0,0.4674019]
[1756530508343,1.04348657,108560.0,108550.0,0.4674019]
[1756530509343,1.04348657,108560.0,108550.0,0.4948587]
[1756530509581,1.04348657,108560.0,108550.0,0.4674019]
[1756530509866,1.04564657,108560.0,108550.0,0.4674019]
[1756530510229,1.04348657,108560.0,108550.0,0.4674019]
[1756530512023,1.04348657,108560.0,108550.0,0.3134019]
[1756530512158,1.04348657,108560.0,108550.0,0.4674019]
[1756530512758,1.04348657,108560.0,108550.0,0.3134019]
[1756530512975,1.04348657,108560.0,108550.0,0.28315501]
[1756530513181,1.04564657,108560.0,108550.0,0.28315501]
[1756530513959,1.04564657,108560.0,108550.0,0.4674019]
[1756530519697,0.18722295,108570.0,108550.0,0.5382419]
[1756530519907,0.85925666,108560.0,108550.0,0.5382419]
[1756530520092,0.85925666,108560.0,108550.0,0.5105469]
[1756530520484,0.85925666,108560.0,108550.0,0.5372389]
[1756530521064,1.04348657,108560.0,108550.0,0.5372389]
[1756530521290,1.04348657,108560.0,108550.0,0.35299201]
[1756530521878,1.04564657,108560.0,108550.0,0.35399201]
[1756530522117,1.04564657,108560.0,108550.0,0.3842389]
[1756530522347,1.04564657,108560.0,108550.0,0.5381989]
[1756530526520,1.04564657,108560.0,108550.0,0.3842389]
[1756530526701,1.04564657,108560.0,108550.0,0.5381989]
[1756530527057,0.18638991,108560.0,108550.0,0.5381989]
[1756530527258,1.04564657,108560.0,108550.0,0.5381989]
[1756530531083,1.4752749,108560.0,108550.0,0.19703201]
[1756530531284,1.04564657,108560.0,108550.0,0.35099201]
[1756530536433,0.18638991,108560.0,108550.0,0.35099201]
[1756530536636,1.04564657,108560.0,108550.0,0.35399201]
[1756530537163,1.04564657,108560.0,108550.0,0.5352389]
[1756530537307,1.04564657,108560.0,108550.0,0.5382389]
[1756530537519,1.04564657,108560.0,108550.0,0.5352389]
[1756530538131,1.04564657,108560.0,108550.0,0.5382389]
[1756530538900,1.04564657,108560.0,108550.0,0.5352389]
[1756530539149,1.04564657,108560.0,108550.0,0.5382389]
[1756530541242,1.04564657,108560.0,108550.0,0.35399201]
[1756530541443,1.04564657,108560.0,108550.0,0.35099201]
[1756530543690,1.04564657,108560.0,108550.0,0.35399201]
[1756530545127,1.04564657,108560.0,108550.0,0.35099201]
[1756530550397,1.04564657,108560.0,108550.0,0.35399201]
[1756530551052,1.04564657,108560.0,108550.0,0.35099201]
[1756530553605,1.04564657,108560.0,108550.0,0.5352389]
[1756530553843,1.04564657,108560.0,108550.0,0.5382389]
[1756530554960,0.18722295,108570.0,108550.0,0.5382389]
[1756530555203,0.18421295,108570.0,108560.0,0.28251279]
[1756530555445,0.61384128,108570.0,108560.0,0.28231992]
[1756530555672,0.42962833,108570.0,108560.0,0.28231992]
[1756530556393,0.42962833,108570.0,108560.0,0.31400892]
[1756530557491,0.42962833,108570.0,108560.0,0.31600892]
[1756530557744,0.61583128,108570.0,108560.0,0.31600892]
[1756530559440,1.04545961,108570.0,108560.0,0.31600892]
[1756530561231,1.04545961,108570.0,108560.0,0.31300892]
[1756530561846,1.04545961,108570.0,108560.0,0.31601892]
[1756530562663,1.04545961,108570.0,108560.0,0.35790223]
[1756530564593,1.04545961,108570.0,108560.0,0.32759232]
[1756530565688,1.04545961,108570.0,108560.0,0.51182223]
[1756530571885,1.04545961,108570.0,108560.0,0.46993892]
[1756530572632,1.04545961,108570.0,108560.0,0.51054385]
[1756530576061,0.42962833,108570.0,108560.0,0.51054385]
[1756530576294,0.85925666,108570.0,108560.0,0.51054385]
[1756530576512,0.42962833,108570.0,108560.0,0.51054385]
[1756530577399,0.62303292,108580.0,108570.0,0.18421295]
[1756530577593,0.62515427,108580.0,108570.0,0.35005296]
[1756530578111,0.62515427,108580.0,108570.0,0.37773896]
[1756530578502,1.0547826,108580.0,108570.0,0.37773896]
[1756530578697,1.0547826,108580.0,108570.0,0.37873896]
[1756530579877,1.0547826,108580.0,108570.0,0.37973896]
[1756530582853,1.0547826,108580.0,108570.0,0.38274896]
[1756530583270,0.00933996,108580.0,108570.0,0.38274896]
[1756530583448,0.86859662,108580.0,108570.0,0.38274896]
[1756530583670,0.85938801,108580.0,108570.0,0.38274896]
[1756530585161,0.85938801,108580.0,108570.0,0.38074896]
[1756530585535,0.85938801,108580.0,108570.0,0.38374896]
[1756530586428,0.42975968,108580.0,108570.0,0.38374896]
[1756530586663,0.42975968,108580.0,108570.0,0.38674896]
[1756530586835,0.42975968,108580.0,108570.0,0.39610362]
[1756530589099,0.42975968,108580.0,108570.0,0.38674896]
[1756530589551,0.85938801,108580.0,108570.0,0.38674896]
[1756530590906,0.00013135,108580.0,108570.0,0.41711317]
[1756530591125,0.00013135,108580.0,108570.0,0.46711317]
[1756530591509,0.42975968,108580.0,108570.0,0.46711317]
[1756530591739,0.00013135,108580.0,108570.0,0.46711317]
[1756530591958,0.42975968,108580.0,108570.0,0.46711317]
[1756530593121,0.42975968,108580.0,108570.0,0.80711317]
[1756530594198,0.00013135,108580.0,108570.0,0.80711317]
[1756530594397,0.42975968,108580.0,108570.0,0.80711317]
[1756530598530,0.00013135,108580.0,108570.0,0.80711317]
[1756530598702,0.42975968,108580.0,108570.0,0.80711317]
[1756530600245,0.00013135,108580.0,108570.0,0.80711317]
[1756530600445,0.42975968,108580.0,108570.0,0.80711317]
[1756530601252,0.00013135,108580.0,108570.0,0.80711317]
[1756530601456,0.42975968,108580.0,108570.0,0.96095317]
[1756530602085,0.00013135,108580.0,108570.0,0.80711317]
[1756530602286,0.42975968,108580.0,108570.0,0.96095317]
[1756530603911,0.00013135,108580.0,108570.0,0.96095317]
[1756530604089,0.42975968,108580.0,108570.0,0.96095317]
[1756530605211,0.42975968,108580.0,108570.0,0.79768778]
[1756530605419,0.85938801,108580.0,108570.0,0.95152778]
[1756530607970,0.85938801,108580.0,108570.0,0.79768778]
[1756530608195,0.85938801,108580.0,108570.0,0.95152778]
[1756530608410,0.85938801,108580.0,108570.0,0.79768778]
[1756530608621,0.42975968,108580.0,108570.0,0.95152778]
[1756530609044,0.86140801,108580.0,108570.0,0.95152778]
[1756530609251,0.00013135,108580.0,108570.0,0.95152778]
[1756530609682,0.85938801,108580.0,108570.0,0.95152778]
[1756530610385,0.86140801,108580.0,108570.0,0.95152778]
[1756530610587,1.47836232,108580.0,108570.0,0.19750601]
[1756530610762,1.47836232,108580.0,108570.0,0.53575896]
[1756530611199,1.47836232,108580.0,108570.0,0.35162601]
[1756530611917,1.47836232,108580.0,108570.0,0.35158601]
[1756530612392,0.18947733,108580.0,108570.0,0.35158601]
[1756530612614,0.00528135,108580.0,108570.0,0.53579896]
[1756530612796,0.86453801,108580.0,108570.0,0.53579896]
[1756530613215,1.04873399,108580.0,108570.0,0.35178601]
[1756530613849,1.47836232,108580.0,108570.0,0.35178601]
[1756530614053,1.47836232,108580.0,108570.0,0.19750601]
[1756530614261,1.47836232,108580.0,108570.0,0.35178601]
[1756530615510,1.47836232,108580.0,108570.0,0.19750601]
[1756530615717,1.47836232,108580.0,108570.0,0.35178601]
[1756530616340,0.18947733,108580.0,108570.0,0.35178601]
[1756530616522,1.47836232,108580.0,108570.0,0.35178601]
[1756530617519,0.18947733,108580.0,108570.0,0.35178601]
[1756530617716,1.47836232,108580.0,108570.0,0.35178601]
[1756530618149,1.47836232,108580.0,108570.0,0.19750601]
[1756530618350,1.47836232,108580.0,108570.0,0.28182601]
[1756530618561,1.47836232,108580.0,108570.0,0.25414001]
[1756530618780,1.47836232,108580.0,108570.0,0.09898001]
[1756530619042,1.47836232,108580.0,108570.0,0.25434001]
[1756530619210,1.47836232,108580.0,108570.0,0.09598001]
[1756530619435,1.47836232,108580.0,108570.0,0.09798001]
[1756530619581,1.56665864,108580.0,108570.0,0.25334001]
[1756530619782,1.56665864,108580.0,108570.0,0.25134001]
[1756530620152,1.56665864,108580.0,108570.0,0.25234001]
[1756530620365,1.56665864,108580.0,108570.0,0.24934001]
[1756530620572,1.47836232,108580.0,108570.0,0.24934001]
[1756530620781,1.47836232,108580.0,108570.0,0.25034001]
[1756530620982,1.47836232,108580.0,108570.0,0.09498001]
[1756530621264,1.47836232,108580.0,108570.0,0.15732]
[1756530621406,1.56665864,108580.0,108570.0,0.15732]
[1756530623098,1.72197864,108580.0,108570.0,0.15732]
[1756530624586,1.72197864,108580.0,108570.0,0.002]
[1756530625840,1.63368232,108580.0,108570.0,0.002]
[1756530628914,1.97368232,108580.0,108570.0,0.002]
[1756530629121,2.40331065,108580.0,108570.0,0.002]
[1756530629701,3.26256731,108580.0,108570.0,0.002]
[1756530630127,3.29025931,108580.0,108570.0,0.002]
[1756530630526,3.37855563,108580.0,108570.0,0.001]
[1756530630703,3.39571315,108580.0,108570.0,0.001]
[1756530630910,0.52422991,108560.0,108550.0,0.0004]
[1756530631113,1.9685949,108560.0,108550.0,0.0004]
[1756530631342,2.40341323,108560.0,108550.0,0.0004]
[1756530631509,2.49170955,108560.0,108550.0,0.0004]
[1756530632157,3.35096621,108560.0,108550.0,0.0004]
[1756530632356,3.35096621,108560.0,108550.0,0.0014]
[1756530632784,3.36811036,108560.0,108550.0,0.0014]
[1756530632985,3.43895036,108560.0,108550.0,0.0024]
[1756530633402,1.72110994,108560.0,108550.0,0.0014]
[1756530634101,1.72496394,108560.0,108550.0,0.0014]
[1756530634496,1.72496394,108560.0,108550.0,0.0004]
[1756530634679,1.72596394,108560.0,108550.0,0.0004]
[1756530635696,1.72594677,108560.0,108550.0,0.0004]
[1756530637315,1.72586677,108560.0,108550.0,0.0004]
[1756530637933,1.48201045,108560.0,108550.0,0.0004]
[1756530638188,1.63757045,108560.0,108550.0,0.0004]
[1756530639380,1.6376498,108560.0,108550.0,0.0004]
[1756530639731,1.73062981,108560.0,108550.0,0.0004]
[1756530639950,1.57498981,108560.0,108550.0,0.0004]
[1756530640160,1.81892613,108560.0,108550.0,0.0004]
[1756530640529,0.18424689,108550.0,108540.0,0.00048]
[1756530640740,1.64690756,108550.0,108540.0,0.00048]
[1756530641099,1.65209756,108550.0,108540.0,0.00048]
[1756530641272,1.83337389,108550.0,108540.0,0.00048]
[1756530641821,1.83714689,108550.0,108540.0,0.00148]
[1756530642230,1.83714689,108550.0,108540.0,0.00048]
[1756530642429,0.54925255,108550.0,108540.0,0.00048]
[1756530642653,1.83914689,108550.0,108540.0,0.00048]
[1756530642868,1.83914689,108550.0,108540.0,0.00148]
[1756530643252,1.83914689,108550.0,108540.0,0.00048]
[1756530643590,1.84014689,108550.0,108540.0,0.00048]
[1756530644308,2.02440689,108550.0,108540.0,0.00048]
[1756530644524,2.36440689,108550.0,108540.0,0.00048]
[1756530644670,2.38412806,108550.0,108540.0,0.00048]
[1756530644873,2.39054757,108550.0,108540.0,0.00048]
[1756530646332,2.23482757,108550.0,108540.0,0.00048]
[1756530646529,2.39054757,108550.0,108540.0,0.00048]
[1756530648947,2.39054167,108550.0,108540.0,0.00048]
[1756530649567,2.41691476,108550.0,108540.0,0.00048]
[1756530649768,2.44044981,108550.0,108540.0,0.00048]
[1756530650192,2.42333339,108550.0,108540.0,0.00048]
[1756530650358,2.44045114,108550.0,108540.0,0.00048]
[1756530650982,2.88995114,108550.0,108540.0,0.00048]
[1756530651807,0.52426386,108540.0,108530.0,0.0002]
[1756530652022,2.42193528,108540.0,108530.0,0.0002]
[1756530652222,2.42707528,108540.0,108530.0,1e-08]
[1756530652586,2.45478128,108540.0,108530.0,1e-08]
[1756530653039,2.47950118,108540.0,108530.0,1e-08]
[1756530653193,1.64051044,108540.0,108530.0,1e-08]
[1756530653399,1.64050672,108540.0,108530.0,1e-08]
[1756530654840,1.64350672,108540.0,108530.0,1e-08]
[1756530655073,1.64050672,108540.0,108530.0,1e-08]
[1756530655291,1.49276273,108540.0,108530.0,1e-08]
[1756530655504,1.68129246,108540.0,108530.0,1e-08]
[1756530655931,1.68329246,108540.0,108530.0,1e-08]
[1756530656567,1.68129246,108540.0,108530.0,1e-08]
[1756530656769,1.68329402,108540.0,108530.0,1e-08]
[1756530657203,1.68325402,108540.0,108530.0,1e-08]
[1756530658289,1.52781402,108540.0,108530.0,1e-08]
[1756530658504,1.65853412,108540.0,108530.0,1e-08]
[1756530658862,1.50309412,108540.0,108530.0,1e-08]
[1756530659094,1.65849412,108540.0,108530.0,1e-08]
[1756530659469,1.70806871,108540.0,108530.0,1e-08]
[1756530660391,1.70811058,108540.0,108530.0,1e-08]
[1756530660875,1.70814204,108540.0,108530.0,1e-08]
[1756530662510,1.55274204,108540.0,108530.0,1e-08]
[1756530662714,1.70814204,108540.0,108530.0,1e-08]
[1756530663085,1.70814345,108540.0,108530.0,1e-08]
[1756530670109,1.70816582,108540.0,108530.0,1e-08]
[1756530670312,1.67511609,108540.0,108530.0,1e-08]
[1756530670974,1.6751227,108540.0,108530.0,1e-08]
[1756530672550,1.5197227,108540.0,108530.0,1e-08]
[1756530672759,1.6749227,108540.0,108530.0,1e-08]
[1756530673313,1.6748827,108540.0,108530.0,1e-08]
[1756530675460,1.70786786,108540.0,108530.0,1e-08]
[1756530677563,1.55270786,108540.0,108530.0,1e-08]
[1756530677775,1.70778786,108540.0,108530.0,1e-08]
[1756530679321,1.6748027,108540.0,108530.0,1e-08]
[1756530680832,1.67484116,108540.0,108530.0,1e-08]
[1756530681427,1.24487638,108540.0,108530.0,1e-08]
[1756530682427,2.53536232,108540.0,108530.0,1e-08]
[1756530684578,2.56839798,108540.0,108530.0,1e-08]
[1756530688485,2.51882339,108540.0,108530.0,1e-08]
[1756530689452,2.54359978,108540.0,108530.0,1e-08]
[1756530689773,2.38851978,108540.0,108530.0,1e-08]
[1756530690180,2.38534978,108540.0,108530.0,1e-08]
[1756530690404,2.54329978,108540.0,108530.0,1e-08]
[1756530690807,0.52428084,108530.0,108520.0,0.00334]
[1756530691020,1.53771474,108530.0,108520.0,0.00334]
[1756530691262,2.82820068,108530.0,108520.0,0.00539]
[1756530691465,2.82821367,108530.0,108520.0,0.00539]
[1756530691602,2.85592167,108530.0,108520.0,0.00539]
[1756530692183,2.85592189,108530.0,108520.0,0.00539]
[1756530692411,2.85792189,108530.0,108520.0,0.00539]
[1756530693810,2.86007189,108530.0,108520.0,0.00539]
[1756530694212,2.86007189,108530.0,108520.0,0.00245]
[1756530694440,2.86402189,108530.0,108520.0,0.00245]
[1756530695417,2.86402189,108530.0,108520.0,0.0004]
[1756530697075,2.86390189,108530.0,108520.0,0.0004]
[1756530698436,2.8639021,108530.0,108520.0,0.0004]
[1756530699727,3.29406408,108530.0,108520.0,1e-08]
[1756530699953,3.3440336,108530.0,108520.0,1e-08]
[1756530700162,2.91387162,108530.0,108520.0,1e-08]
[1756530700516,4.20435756,108530.0,108520.0,1e-08]
[1756530701492,3.77579638,108530.0,108520.0,1e-08]
[1756530701952,3.60371039,108530.0,108520.0,1e-08]
[1756530702178,3.77567173,108530.0,108520.0,1e-08]
[1756530705634,3.77566848,108530.0,108520.0,1e-08]
[1756530706376,3.77562848,108530.0,108520.0,1e-08]
[1756530706578,2.48514254,108530.0,108520.0,1e-08]
[1756530706780,2.33042254,108530.0,108520.0,1e-08]
[1756530706982,2.45741615,108530.0,108520.0,0.00205001]
[1756530707334,2.46036615,108530.0,108520.0,0.00205001]
[1756530708778,2.46036615,108530.0,108520.0,1e-08]
[1756530708947,2.46036615,108530.0,108520.0,0.00204001]
[1756530711672,2.53124615,108530.0,108520.0,0.00204001]
[1756530712477,2.5140467,108530.0,108520.0,0.00204001]
[1756530712682,2.53124542,108530.0,108520.0,0.00204001]
[1756530712895,2.14401714,108530.0,108520.0,0.00512001]
[1756530713103,2.14401809,108530.0,108520.0,0.00512001]
[1756530713582,2.29869809,108530.0,108520.0,0.00512001]
[1756530713961,2.29865809,108530.0,108520.0,0.00512001]
[1756530717444,2.29865809,108530.0,108520.0,0.00204001]
[1756530717684,2.38695441,108530.0,108520.0,0.00512001]
[1756530719767,2.38906441,108530.0,108520.0,0.00512001]
[1756530720019,2.38906441,108530.0,108520.0,1e-08]
[1756530720205,2.39222441,108530.0,108520.0,1e-08]
[1756530720407,2.39222441,108530.0,108520.0,0.00204001]
[1756530720737,2.39221581,108530.0,108520.0,0.00204001]
[1756530721232,2.37502365,108530.0,108520.0,0.00204001]
[1756530721430,2.39221581,108530.0,108520.0,0.00204001]
[1756530721666,2.38576589,108530.0,108520.0,0.00204001]
[1756530722109,2.36857373,108530.0,108520.0,0.00204001]
[1756530722331,2.38576519,108530.0,108520.0,0.00204001]
[1756530722800,2.38576456,108530.0,108520.0,0.00204001]
[1756530724274,2.36601193,108530.0,108520.0,1e-08]
[1756530724647,2.36601193,108530.0,108520.0,0.00204001]
[1756530725114,2.36501193,108530.0,108520.0,0.00204001]
[1756530725332,2.36301193,108530.0,108520.0,0.00204001]
[1756530725730,2.35774193,108530.0,108520.0,0.00512001]
[1756530726585,2.35985193,108530.0,108520.0,0.00512001]
[1756530728535,2.20521193,108530.0,108520.0,0.00512001]
[1756530728719,2.36297193,108530.0,108520.0,1e-08]
[1756530728845,2.20837193,108530.0,108520.0,1e-08]
[1756530729064,2.36297193,108530.0,108520.0,0.00204001]
[1756530729263,2.20837193,108530.0,108520.0,0.00204001]
[1756530729490,2.36293193,108530.0,108520.0,0.00204001]
[1756530732639,2.36293239,108530.0,108520.0,0.00204001]
[1756530733031,1.06928645,108530.0,108520.0,0.00512001]
[1756530733246,1.68464409,108530.0,108520.0,0.00512001]
[1756530733444,1.7948248,108530.0,108520.0,0.00512001]
[1756530741336,0.93450084,108530.0,108520.0,0.00512001]
[1756530741574,1.7948248,108530.0,108520.0,0.00512001]
[1756530745151,1.7951448,108530.0,108520.0,0.00512001]
[1756530745425,1.81493006,108530.0,108520.0,0.00512001]
[1756530745647,1.7951448,108530.0,108520.0,0.00512001]
[1756530746090,0.93482084,108530.0,108520.0,0.00512001]
[1756530746320,1.7951448,108530.0,108520.0,0.00512001]
[1756530746921,1.7972248,108530.0,108520.0,0.00512001]
[1756530747123,0.93690084,108530.0,108520.0,0.00512001]
[1756530747534,1.7972248,108530.0,108520.0,0.00512001]
[1756530748083,1.82969257,108530.0,108520.0,0.00512001]
[1756530748356,0.96936861,108530.0,108520.0,0.00512001]
[1756530748495,1.82969257,108530.0,108520.0,0.00512001]
[1756530749522,1.82969257,108530.0,108520.0,0.00204001]
[1756530749729,1.83268257,108530.0,108520.0,0.00204001]
[1756530751446,2.26284455,108530.0,108520.0,1e-08]
[1756530751863,2.12462287,108530.0,108520.0,1e-08]
[1756530752089,2.30804987,108530.0,108520.0,1e-08]
[1756530752502,1.72216789,108530.0,108520.0,1e-08]
[1756530752706,1.82997257,108530.0,108520.0,0.00207001]
[1756530753119,1.83296257,108530.0,108520.0,0.00207001]
[1756530753331,1.83296257,108530.0,108520.0,1e-08]
[1756530753929,2.2803045,108530.0,108520.0,1e-08]
[1756530755789,2.08081105,108530.0,108520.0,1e-08]
[1756530755996,2.26509189,108530.0,108520.0,1e-08]
[1756530756222,0.97460595,108530.0,108520.0,1e-08]
[1756530756428,2.10941189,108530.0,108520.0,1e-08]
[1756530756640,2.23258412,108530.0,108520.0,1e-08]
[1756530757385,0.94209818,108530.0,108520.0,1e-08]